[Event "*** Titled Tuesday Blitz"]
[Site "Chess.com"]
[Date "2020.12.29"]
[Round "11"]
[White "Skat2704"]
[Black "Mikasinski"]
[Result "1-0"]
[WhiteElo "2416"]
[BlackElo "2508"]
[TimeControl "180+1"]
[EndTime "12:06:53 PST"]
[Termination "Skat2704 won by resignation"]

1. d4 {[%clk 0:03:00.9]} 1... Nf6 {[%clk 0:02:59.9]} 2. c4 {[%clk 0:03:00.6]}
2... g6 {[%clk 0:03:00.3]} 3. Nc3 {[%clk 0:03:00.3]} 3... Bg7 {[%clk 0:03:01.1]}
4. e4 {[%clk 0:03:00.1]} 4... d6 {[%clk 0:03:02]} 5. Nf3 {[%clk 0:02:59.5]} 5...
O-O {[%clk 0:03:02.6]} 6. Be2 {[%clk 0:02:59.6]} 6... e5 {[%clk 0:03:03.1]} 7.
dxe5 {[%clk 0:02:59.4]} 7... dxe5 {[%clk 0:03:02.7]} 8. Qxd8 {[%clk 0:02:59.9]}
8... Rxd8 {[%clk 0:03:03.3]} 9. Bg5 {[%clk 0:02:59.6]} 9... Re8 {[%clk
0:03:03.6]} 10. O-O-O {[%clk 0:02:56.9]} 10... Na6 {[%clk 0:03:02.6]} 11. Nd2
{[%clk 0:02:51.5]} 11... Nc5 {[%clk 0:02:57.8]} 12. f3 {[%clk 0:02:51.3]} 12...
Ne6 {[%clk 0:02:57.3]} 13. Be3 {[%clk 0:02:49.1]} 13... c6 {[%clk 0:02:57.3]}
14. Nb3 {[%clk 0:02:48.4]} 14... Nh5 {[%clk 0:02:32.5]} 15. Rhe1 {[%clk
0:02:44.7]} 15... f5 {[%clk 0:02:28.9]} 16. Na4 {[%clk 0:02:39.8]} 16... b6
{[%clk 0:02:23.1]} 17. c5 {[%clk 0:02:24.5]} 17... b5 {[%clk 0:02:22.1]} 18. Nc3
{[%clk 0:02:24.9]} 18... a5 {[%clk 0:02:22.1]} 19. Rd6 {[%clk 0:02:21.4]} 19...
a4 {[%clk 0:02:21.2]} 20. Na1 {[%clk 0:02:19]} 20... Nd4 {[%clk 0:02:21.1]} 21.
Nc2 {[%clk 0:01:57.3]} 21... Bf8 {[%clk 0:01:57.8]} 22. Nxd4 {[%clk 0:01:51.7]}
22... exd4 {[%clk 0:01:53.2]} 23. Rxd4 {[%clk 0:01:36.6]} 23... Bxc5 {[%clk
0:01:52.5]} 24. Rd3 {[%clk 0:01:34.9]} 24... Bxe3+ {[%clk 0:01:52.3]} 25. Rxe3
{[%clk 0:01:34.2]} 25... b4 {[%clk 0:01:41.6]} 26. Bc4+ {[%clk 0:01:30.3]} 26...
Kg7 {[%clk 0:01:41.2]} 27. Nb1 {[%clk 0:01:25.7]} 27... fxe4 {[%clk 0:01:39.2]}
28. Rxe4 {[%clk 0:01:22.8]} 28... Rxe4 {[%clk 0:01:38]} 29. Rxe4 {[%clk
0:01:22.3]} 29... Ra7 {[%clk 0:01:27.9]} 30. Re8 {[%clk 0:01:18.4]} 30... Rc7
{[%clk 0:01:22.7]} 31. Nd2 {[%clk 0:01:14]} 31... Nf6 {[%clk 0:01:18.1]} 32. Re5
{[%clk 0:01:07.5]} 32... c5 {[%clk 0:01:13.9]} 33. g4 {[%clk 0:01:04.7]} 33...
h6 {[%clk 0:01:12.5]} 34. Ne4 {[%clk 0:01:02.2]} 34... Nxe4 {[%clk 0:01:12.3]}
35. Rxe4 {[%clk 0:01:02.1]} 35... Bb7 {[%clk 0:01:04.8]} 36. Re3 {[%clk
0:00:57.4]} 36... g5 {[%clk 0:01:01.9]} 37. Kd2 {[%clk 0:00:54.3]} 37... Rd7+
{[%clk 0:01:00.6]} 38. Ke2 {[%clk 0:00:54.2]} 38... Kf6 {[%clk 0:00:26.4]} 39.
Re6+ {[%clk 0:00:52.8]} 39... Kg7 {[%clk 0:00:26.9]} 40. Re5 {[%clk 0:00:52.8]}
40... Rd4 {[%clk 0:00:16.9]} 41. b3 {[%clk 0:00:50.7]} 41... axb3 {[%clk
0:00:15]} 42. axb3 {[%clk 0:00:50.2]} 42... Kg6 {[%clk 0:00:06.7]} 43. Re6+
{[%clk 0:00:46.1]} 43... Kf7 {[%clk 0:00:03.6]} 44. Rxh6+ {[%clk 0:00:37.6]}
44... Ke8 {[%clk 0:00:02.9]} 45. Rb6 {[%clk 0:00:35.1]} 45... Bc8 {[%clk
0:00:02.5]} 46. Rc6 {[%clk 0:00:31.7]} 46... Bd7 {[%clk 0:00:02.1]} 47. Rxc5
{[%clk 0:00:31.4]} 47... Rf4 {[%clk 0:00:01.7]} 48. Rxg5 {[%clk 0:00:30.5]}
48... Bc6 {[%clk 0:00:02.3]} 49. Re5+ {[%clk 0:00:29.9]} 49... Kf8 {[%clk
0:00:01.5]} 50. Rf5+ {[%clk 0:00:29.2]} 50... Rxf5 {[%clk 0:00:01.8]} 51. gxf5
{[%clk 0:00:29.3]} 51... Ke7 {[%clk 0:00:02.5]} 52. Ke3 {[%clk 0:00:29.3]} 52...
Kf6 {[%clk 0:00:03.1]} 53. Kf4 {[%clk 0:00:29.4]} 53... Be8 {[%clk 0:00:02.3]}
54. h4 {[%clk 0:00:29.2]} 54... Bh5 {[%clk 0:00:02.4]} 55. Be6 {[%clk
0:00:28.8]} 55... Be8 {[%clk 0:00:02]} 56. Ke3 {[%clk 0:00:28.3]} 56... Bh5
{[%clk 0:00:01.6]} 57. f4 {[%clk 0:00:27.3]} 57... Be8 {[%clk 0:00:01.7]} 58.
Kd4 {[%clk 0:00:27.1]} 58... Bh5 {[%clk 0:00:02.4]} 59. Kc5 {[%clk 0:00:27]}
59... Be2 {[%clk 0:00:01.8]} 60. Kxb4 {[%clk 0:00:26.6]} 60... Kg7 {[%clk
0:00:02.3]} 61. Kc5 {[%clk 0:00:26.2]} 61... Kh6 {[%clk 0:00:03.1]} 62. b4
{[%clk 0:00:25.9]} 62... Kg7 {[%clk 0:00:03.2]} 63. b5 {[%clk 0:00:25.9]} 63...
Kf6 {[%clk 0:00:04.1]} 64. b6 {[%clk 0:00:26.1]} 64... Ba6 {[%clk 0:00:05]} 65.
Kc6 {[%clk 0:00:25.8]} 65... Ke7 {[%clk 0:00:05.6]} 66. b7 {[%clk 0:00:25.3]}
66... Bxb7+ {[%clk 0:00:06.5]} 67. Kxb7 {[%clk 0:00:25.2]} 1-0

[Event "*** Titled Tuesday Blitz"]
[Site "Chess.com"]
[Date "2020.12.29"]
[Round "11"]
[White "Bigfish1995"]
[Black "DanielNaroditsky"]
[Result "1-0"]
[WhiteElo "3024"]
[BlackElo "3101"]
[TimeControl "180+1"]
[EndTime "12:06:54 PST"]
[Termination "Bigfish1995 won by resignation"]

1. e4 {[%clk 0:03:00.9]} 1... c5 {[%clk 0:02:56.3]} 2. Nf3 {[%clk 0:03:00.9]}
2... d6 {[%clk 0:02:55.8]} 3. d4 {[%clk 0:03:01.1]} 3... cxd4 {[%clk 0:02:56.7]}
4. Nxd4 {[%clk 0:03:01.3]} 4... Nf6 {[%clk 0:02:55.3]} 5. Nc3 {[%clk 0:03:01.5]}
5... a6 {[%clk 0:02:55.9]} 6. Qd3 {[%clk 0:03:01.7]} 6... Nc6 {[%clk 0:02:54]}
7. Bg5 {[%clk 0:03:00.1]} 7... Bd7 {[%clk 0:02:46.2]} 8. f4 {[%clk 0:02:59.4]}
8... Rc8 {[%clk 0:02:45.1]} 9. Be2 {[%clk 0:02:54.1]} 9... e5 {[%clk 0:02:39.8]}
10. Nxc6 {[%clk 0:02:49.3]} 10... Bxc6 {[%clk 0:02:36.9]} 11. O-O-O {[%clk
0:02:47.6]} 11... Be7 {[%clk 0:02:34]} 12. Bxf6 {[%clk 0:02:12.3]} 12... Bxf6
{[%clk 0:02:33]} 13. f5 {[%clk 0:02:12.8]} 13... Qa5 {[%clk 0:02:16.5]} 14. Kb1
{[%clk 0:02:08.8]} 14... O-O {[%clk 0:02:13.6]} 15. g4 {[%clk 0:02:07.7]} 15...
Bd8 {[%clk 0:01:53.2]} 16. Qxd6 {[%clk 0:01:50.6]} 16... Bb6 {[%clk 0:01:39.6]}
17. Nd5 {[%clk 0:01:47.6]} 17... Bxd5 {[%clk 0:01:35]} 18. Rxd5 {[%clk
0:01:42.5]} 18... Qa4 {[%clk 0:01:35.2]} 19. Bd3 {[%clk 0:01:35.3]} 19... Bd4
{[%clk 0:01:30.6]} 20. b3 {[%clk 0:01:34.8]} 20... Qc6 {[%clk 0:01:27]} 21. Qxc6
{[%clk 0:01:32.7]} 21... Rxc6 {[%clk 0:01:27.9]} 22. a4 {[%clk 0:01:25.7]} 22...
Rfc8 {[%clk 0:01:22.7]} 23. Rc1 {[%clk 0:00:57.4]} 23... Kf8 {[%clk 0:01:18.4]}
24. h4 {[%clk 0:00:51.8]} 24... Ke7 {[%clk 0:01:16.8]} 25. Rf1 {[%clk
0:00:33.4]} 25... Rb6 {[%clk 0:01:10.8]} 26. Ka2 {[%clk 0:00:25.9]} 26... h6
{[%clk 0:01:09.2]} 27. Bc4 {[%clk 0:00:22.4]} 27... Rbc6 {[%clk 0:01:03.6]} 28.
a5 {[%clk 0:00:19.5]} 28... Rc5 {[%clk 0:01:02.2]} 29. Kb1 {[%clk 0:00:14]}
29... Rxd5 {[%clk 0:00:54.1]} 30. Bxd5 {[%clk 0:00:14.5]} 30... Rc5 {[%clk
0:00:54.8]} 31. Rf3 {[%clk 0:00:14.5]} 31... Rc7 {[%clk 0:00:30.1]} 32. g5
{[%clk 0:00:07.6]} 32... hxg5 {[%clk 0:00:26.4]} 33. hxg5 {[%clk 0:00:08.5]}
33... Bc3 {[%clk 0:00:27.2]} 34. Bxb7 {[%clk 0:00:06.2]} 34... Bxa5 {[%clk
0:00:24.8]} 35. Bxa6 {[%clk 0:00:06.4]} 35... Bc3 {[%clk 0:00:25.3]} 36. Bc4
{[%clk 0:00:06.4]} 36... Bd4 {[%clk 0:00:25.7]} 37. c3 {[%clk 0:00:06.6]} 37...
Bc5 {[%clk 0:00:26.3]} 38. Kc2 {[%clk 0:00:06.4]} 38... Ra7 {[%clk 0:00:26.3]}
39. b4 {[%clk 0:00:06.4]} 39... Bd6 {[%clk 0:00:27]} 40. f6+ {[%clk 0:00:06.4]}
40... Kf8 {[%clk 0:00:27.6]} 41. Rd3 {[%clk 0:00:05.5]} 41... Rd7 {[%clk
0:00:23]} 42. Bb5 {[%clk 0:00:04.3]} 42... Rd8 {[%clk 0:00:23.5]} 43. Rh3 {[%clk
0:00:04.5]} 43... Kg8 {[%clk 0:00:23.5]} 44. Bc4 {[%clk 0:00:05]} 44... Rc8
{[%clk 0:00:21.4]} 45. Kb3 {[%clk 0:00:04.4]} 45... g6 {[%clk 0:00:17.4]} 46.
Rh6 {[%clk 0:00:04.2]} 46... Bf8 {[%clk 0:00:15]} 47. Rh3 {[%clk 0:00:02.6]}
47... Rd8 {[%clk 0:00:12.4]} 48. Bd5 {[%clk 0:00:03]} 48... Rb8 {[%clk
0:00:12.1]} 49. Kc4 {[%clk 0:00:03.1]} 49... Rc8+ {[%clk 0:00:12.6]} 50. Kd3
{[%clk 0:00:03.5]} 50... Rb8 {[%clk 0:00:13.4]} 51. Rh2 {[%clk 0:00:03.6]} 51...
Rb6 {[%clk 0:00:08.7]} 52. Ra2 {[%clk 0:00:03.5]} 52... Rb8 {[%clk 0:00:09]} 53.
Ra7 {[%clk 0:00:03.6]} 53... Kh8 {[%clk 0:00:08.9]} 54. Rxf7 {[%clk 0:00:03.8]}
54... Rc8 {[%clk 0:00:09.2]} 55. b5 {[%clk 0:00:03.4]} 55... Bc5 {[%clk
0:00:07.5]} 56. Rg7 {[%clk 0:00:03.8]} 56... Bb4 {[%clk 0:00:07]} 57. Rxg6
{[%clk 0:00:02.4]} 57... Rxc3+ {[%clk 0:00:07.1]} 58. Ke2 {[%clk 0:00:03.3]}
58... Rc2+ {[%clk 0:00:04]} 59. Kf3 {[%clk 0:00:03.4]} 59... Rh2 {[%clk
0:00:04.5]} 60. Rh6+ {[%clk 0:00:03.5]} 60... Rxh6 {[%clk 0:00:05.2]} 61. gxh6
{[%clk 0:00:04.4]} 61... Kh7 {[%clk 0:00:06.1]} 62. f7 {[%clk 0:00:05]} 62...
Kxh6 {[%clk 0:00:06.5]} 63. b6 {[%clk 0:00:05.3]} 63... Kg7 {[%clk 0:00:07.2]}
64. b7 {[%clk 0:00:06.2]} 64... Bd6 {[%clk 0:00:07.3]} 65. Kg4 {[%clk
0:00:06.8]} 65... Kf8 {[%clk 0:00:08]} 66. Kf5 {[%clk 0:00:07.1]} 66... Ke7
{[%clk 0:00:08.7]} 67. Kg6 {[%clk 0:00:07.5]} 67... Kf8 {[%clk 0:00:07.8]} 68.
Kf6 {[%clk 0:00:07.9]} 68... Bc7 {[%clk 0:00:08.5]} 69. Ke6 {[%clk 0:00:08.4]}
69... Bb8 {[%clk 0:00:09]} 70. Kd7 {[%clk 0:00:09]} 1-0

[Event "*** Titled Tuesday Blitz"]
[Site "Chess.com"]
[Date "2020.12.29"]
[Round "11"]
[White "MillyNeuf"]
[Black "WinOrTilt"]
[Result "1-0"]
[WhiteElo "2330"]
[BlackElo "2163"]
[TimeControl "180+1"]
[EndTime "12:06:59 PST"]
[Termination "MillyNeuf won by resignation"]

1. e4 {[%clk 0:03:00.9]} 1... e6 {[%clk 0:03:00.1]} 2. d4 {[%clk 0:03:00.7]}
2... d5 {[%clk 0:03:01]} 3. Nd2 {[%clk 0:03:01.1]} 3... dxe4 {[%clk 0:03:01.4]}
4. Nxe4 {[%clk 0:03:02]} 4... Nd7 {[%clk 0:03:02]} 5. Bd3 {[%clk 0:02:55]} 5...
Ngf6 {[%clk 0:03:02.9]} 6. Qe2 {[%clk 0:02:55.2]} 6... Be7 {[%clk 0:03:03.1]} 7.
c3 {[%clk 0:02:54.3]} 7... Nxe4 {[%clk 0:03:02.5]} 8. Bxe4 {[%clk 0:02:54.2]}
8... Nf6 {[%clk 0:03:03]} 9. Bxb7 {[%clk 0:02:47.4]} 9... Bxb7 {[%clk
0:02:57.4]} 10. Qb5+ {[%clk 0:02:47.1]} 10... Qd7 {[%clk 0:02:51.7]} 11. Qxb7
{[%clk 0:02:46.2]} 11... O-O {[%clk 0:02:52.2]} 12. Nf3 {[%clk 0:02:38]} 12...
Nd5 {[%clk 0:02:44.4]} 13. Qa6 {[%clk 0:02:34.7]} 13... Bd6 {[%clk 0:02:40]} 14.
Qd3 {[%clk 0:02:29.1]} 14... Rab8 {[%clk 0:02:27.2]} 15. O-O {[%clk 0:02:21]}
15... a5 {[%clk 0:02:09.8]} 16. Rb1 {[%clk 0:02:00.4]} 16... a4 {[%clk
0:02:03.9]} 17. b3 {[%clk 0:01:56.1]} 17... axb3 {[%clk 0:01:58]} 18. axb3
{[%clk 0:01:57]} 18... Rb7 {[%clk 0:01:51.8]} 19. Bd2 {[%clk 0:01:55.5]} 19...
Rfb8 {[%clk 0:01:50.8]} 20. b4 {[%clk 0:01:54.3]} 20... Nf4 {[%clk 0:01:37.5]}
21. Bxf4 {[%clk 0:01:40.4]} 21... Bxf4 {[%clk 0:01:38.4]} 22. g3 {[%clk
0:01:39.3]} 22... Bd6 {[%clk 0:01:33.5]} 23. Qc4 {[%clk 0:01:35.4]} 23... Qb5
{[%clk 0:01:21.7]} 24. Qxb5 {[%clk 0:01:34.1]} 24... Rxb5 {[%clk 0:01:22.6]} 25.
Ra1 {[%clk 0:01:33.6]} 25... e5 {[%clk 0:01:16]} 26. dxe5 {[%clk 0:01:29.9]}
26... Bxe5 {[%clk 0:01:16.9]} 27. Nxe5 {[%clk 0:01:28.9]} 27... Rxe5 {[%clk
0:01:16]} 28. Ra7 {[%clk 0:01:28.5]} 28... Rc8 {[%clk 0:01:11.6]} 29. Rd1 {[%clk
0:01:28.1]} 29... c5 {[%clk 0:00:43.8]} 30. b5 {[%clk 0:01:24.7]} 30... Rb8
{[%clk 0:00:39.4]} 31. b6 {[%clk 0:01:18.9]} 31... g6 {[%clk 0:00:28.6]} 32. b7
{[%clk 0:01:17.3]} 32... Re7 {[%clk 0:00:24.2]} 33. Rb1 {[%clk 0:01:16.2]} 33...
Kg7 {[%clk 0:00:17.8]} 34. Kg2 {[%clk 0:01:13.3]} 34... Kf6 {[%clk 0:00:16.9]}
35. Rb6+ {[%clk 0:01:11]} 35... Ke5 {[%clk 0:00:16.7]} 36. Kf3 {[%clk
0:01:01.3]} 36... Kd5 {[%clk 0:00:16.6]} 37. h4 {[%clk 0:00:33]} 37... h6 {[%clk
0:00:16.6]} 38. Rb1 {[%clk 0:00:28.4]} 38... Kc4 {[%clk 0:00:14.6]} 39. Kf4
{[%clk 0:00:22.6]} 39... Rd7 {[%clk 0:00:10.3]} 40. Ke5 {[%clk 0:00:14.9]} 40...
Kxc3 {[%clk 0:00:07.3]} 41. Kf6 {[%clk 0:00:11.5]} 41... c4 {[%clk 0:00:05.4]}
42. Ra3+ {[%clk 0:00:06.9]} 42... Kc2 {[%clk 0:00:05.6]} 43. Rb4 {[%clk
0:00:05.6]} 43... Rbxb7 {[%clk 0:00:03.7]} 44. Rxc4+ {[%clk 0:00:05.2]} 44...
Kb2 {[%clk 0:00:04.2]} 45. Rac3 {[%clk 0:00:04.2]} 45... Rb6+ {[%clk 0:00:04.2]}
46. Rc6 {[%clk 0:00:04.5]} 46... Rxc6+ {[%clk 0:00:03.9]} 47. Rxc6 {[%clk
0:00:05.4]} 47... Kb3 {[%clk 0:00:03.8]} 48. Rc8 {[%clk 0:00:03.5]} 48... Rd2
{[%clk 0:00:03.1]} 49. Kxf7 {[%clk 0:00:02.2]} 49... Rxf2+ {[%clk 0:00:03.4]}
50. Kxg6 {[%clk 0:00:02.6]} 50... Rg2 {[%clk 0:00:04.3]} 51. Kxh6 {[%clk
0:00:01.5]} 51... Rxg3 {[%clk 0:00:04.7]} 52. h5 {[%clk 0:00:02.1]} 52... Kb4
{[%clk 0:00:04.5]} 53. Kh7 {[%clk 0:00:02]} 53... Kb5 {[%clk 0:00:04.9]} 54. h6
{[%clk 0:00:02.1]} 54... Kb6 {[%clk 0:00:05.3]} 55. Rc1 {[%clk 0:00:01.8]} 55...
Kb5 {[%clk 0:00:05.1]} 56. Kh8 {[%clk 0:00:02.2]} 56... Kb4 {[%clk 0:00:05.3]}
57. h7 {[%clk 0:00:02.7]} 57... Kb3 {[%clk 0:00:05.7]} 58. Rc7 {[%clk
0:00:03.1]} 58... Kb4 {[%clk 0:00:05.7]} 59. Rg7 {[%clk 0:00:03.8]} 59... Rh3
{[%clk 0:00:06]} 60. Kg8 {[%clk 0:00:04.1]} 1-0

[Event "*** Titled Tuesday Blitz"]
[Site "Chess.com"]
[Date "2020.12.29"]
[Round "11"]
[White "Nemsko"]
[Black "NaciSAN"]
[Result "1-0"]
[WhiteElo "2317"]
[BlackElo "2167"]
[TimeControl "180+1"]
[EndTime "12:06:59 PST"]
[Termination "Nemsko won on time"]

1. e4 {[%clk 0:03:00.9]} 1... e5 {[%clk 0:03:00.1]} 2. Nf3 {[%clk 0:03:00.5]}
2... Nc6 {[%clk 0:03:00.3]} 3. Bb5 {[%clk 0:03:01.1]} 3... a6 {[%clk 0:03:00.3]}
4. Ba4 {[%clk 0:03:01.4]} 4... Nf6 {[%clk 0:03:00.5]} 5. O-O {[%clk 0:02:58.5]}
5... Be7 {[%clk 0:02:59.2]} 6. Re1 {[%clk 0:02:54.6]} 6... b5 {[%clk 0:02:59.6]}
7. Bb3 {[%clk 0:02:54.5]} 7... O-O {[%clk 0:02:58.9]} 8. h3 {[%clk 0:02:44.3]}
8... Bb7 {[%clk 0:02:55.7]} 9. c3 {[%clk 0:02:44]} 9... d5 {[%clk 0:02:55]} 10.
exd5 {[%clk 0:02:38.1]} 10... Nxd5 {[%clk 0:02:55.9]} 11. d4 {[%clk 0:02:35.4]}
11... exd4 {[%clk 0:02:51.3]} 12. Nxd4 {[%clk 0:02:34.9]} 12... Nxd4 {[%clk
0:02:50]} 13. Qxd4 {[%clk 0:02:35.8]} 13... Bd6 {[%clk 0:02:31]} 14. Nd2 {[%clk
0:02:24.2]} 14... Nf4 {[%clk 0:02:26.4]} 15. Ne4 {[%clk 0:02:14.2]} 15... Re8
{[%clk 0:02:18.7]} 16. Bxf4 {[%clk 0:02:01.9]} 16... Bxf4 {[%clk 0:02:19.6]} 17.
Nc5 {[%clk 0:01:54.6]} 17... Qxd4 {[%clk 0:02:07.7]} 18. cxd4 {[%clk 0:01:55.5]}
18... Rxe1+ {[%clk 0:01:48]} 19. Rxe1 {[%clk 0:01:56.4]} 19... Bc6 {[%clk
0:01:47.7]} 20. d5 {[%clk 0:01:47.4]} 20... Be8 {[%clk 0:01:46.9]} 21. g3 {[%clk
0:01:36.4]} 21... Bd6 {[%clk 0:01:46.1]} 22. Ne4 {[%clk 0:01:36]} 22... Bb4
{[%clk 0:01:41.7]} 23. Rc1 {[%clk 0:01:34.2]} 23... Ba5 {[%clk 0:01:34.5]} 24.
d6 {[%clk 0:01:14.7]} 24... cxd6 {[%clk 0:01:27]} 25. Nxd6 {[%clk 0:01:15.6]}
25... Kf8 {[%clk 0:01:15.6]} 26. Nb7 {[%clk 0:00:45]} 26... Bb6 {[%clk
0:01:12.5]} 27. Bd5 {[%clk 0:00:45]} 27... Rb8 {[%clk 0:01:03.4]} 28. Bf3 {[%clk
0:00:34.6]} 28... Bd7 {[%clk 0:00:55.1]} 29. Kg2 {[%clk 0:00:26.3]} 29... Re8
{[%clk 0:00:53.3]} 30. Nd6 {[%clk 0:00:18.9]} 30... Re6 {[%clk 0:00:49.3]} 31.
Ne4 {[%clk 0:00:18.4]} 31... Re7 {[%clk 0:00:30.1]} 32. Nc3 {[%clk 0:00:17.2]}
32... Bd8 {[%clk 0:00:20.5]} 33. Rd1 {[%clk 0:00:15.3]} 33... g6 {[%clk
0:00:16.4]} 34. Nd5 {[%clk 0:00:14.8]} 34... Re5 {[%clk 0:00:15.7]} 35. Nf4
{[%clk 0:00:13]} 35... Ke7 {[%clk 0:00:13.2]} 36. Nd3 {[%clk 0:00:11.5]} 36...
Re6 {[%clk 0:00:08.1]} 37. Nc5 {[%clk 0:00:10.9]} 37... Rd6 {[%clk 0:00:07.4]}
38. Re1+ {[%clk 0:00:10.3]} 38... Kf8 {[%clk 0:00:06.6]} 39. Nb7 {[%clk
0:00:10.4]} 39... Bc7 {[%clk 0:00:03.6]} 40. Nxd6 {[%clk 0:00:10.5]} 40... Bxd6
{[%clk 0:00:04.5]} 41. Rd1 {[%clk 0:00:11.2]} 41... Ke7 {[%clk 0:00:05.1]} 42.
Re1+ {[%clk 0:00:11.4]} 42... Kd8 {[%clk 0:00:05.2]} 43. Rc1 {[%clk 0:00:12.3]}
43... Be6 {[%clk 0:00:04.8]} 44. b3 {[%clk 0:00:12.1]} 44... a5 {[%clk
0:00:04.4]} 45. Rd1 {[%clk 0:00:12.7]} 45... Ke7 {[%clk 0:00:04.3]} 46. Be2
{[%clk 0:00:13.1]} 46... a4 {[%clk 0:00:03.7]} 47. Bxb5 {[%clk 0:00:09.7]} 47...
axb3 {[%clk 0:00:03.5]} 48. axb3 {[%clk 0:00:10.6]} 48... Bxb3 {[%clk 0:00:04]}
49. Re1+ {[%clk 0:00:11.3]} 49... Be6 {[%clk 0:00:04]} 50. Bc4 {[%clk
0:00:11.2]} 50... Kd7 {[%clk 0:00:04.4]} 51. Bxe6+ {[%clk 0:00:10.4]} 51... fxe6
{[%clk 0:00:05.3]} 52. f4 {[%clk 0:00:10.8]} 52... Ke7 {[%clk 0:00:04.8]} 53.
Re2 {[%clk 0:00:11.7]} 53... Kf6 {[%clk 0:00:05.4]} 54. Kf3 {[%clk 0:00:12.3]}
54... e5 {[%clk 0:00:05.9]} 55. Rd2 {[%clk 0:00:09.2]} 55... Bc7 {[%clk
0:00:05.2]} 56. Rc2 {[%clk 0:00:09.3]} 56... Bd6 {[%clk 0:00:05.4]} 57. Rc6
{[%clk 0:00:09.7]} 57... Ke7 {[%clk 0:00:04.8]} 58. fxe5 {[%clk 0:00:10.3]}
58... Bxe5 {[%clk 0:00:05]} 59. g4 {[%clk 0:00:10.2]} 59... h5 {[%clk 0:00:04]}
60. Ra6 {[%clk 0:00:09.2]} 60... Kf7 {[%clk 0:00:03.3]} 61. Ke4 {[%clk
0:00:07.7]} 61... Bf6 {[%clk 0:00:02.2]} 62. Ra7+ {[%clk 0:00:07.2]} 62... Kg8
{[%clk 0:00:01.8]} 63. Kd5 {[%clk 0:00:05.4]} 63... hxg4 {[%clk 0:00:01.8]} 64.
hxg4 {[%clk 0:00:06.3]} 64... Bg5 {[%clk 0:00:01.3]} 65. Ke6 {[%clk 0:00:05]}
1-0

[Event "*** Titled Tuesday Blitz"]
[Site "Chess.com"]
[Date "2020.12.29"]
[Round "11"]
[White "Tsyhanchuk_Stanislav"]
[Black "Roza_Idrisova"]
[Result "0-1"]
[WhiteElo "2263"]
[BlackElo "2186"]
[TimeControl "180+1"]
[EndTime "12:07:00 PST"]
[Termination "Roza_Idrisova won on time"]

1. d4 {[%clk 0:03:00.9]} 1... d5 {[%clk 0:02:58.3]} 2. Nf3 {[%clk 0:03:00.9]}
2... c6 {[%clk 0:02:58.6]} 3. c4 {[%clk 0:03:01]} 3... Nf6 {[%clk 0:02:58.7]} 4.
e3 {[%clk 0:03:01.4]} 4... a6 {[%clk 0:02:58.9]} 5. Nc3 {[%clk 0:03:00.7]} 5...
b5 {[%clk 0:02:58.6]} 6. b3 {[%clk 0:03:00.9]} 6... Bg4 {[%clk 0:02:57.8]} 7.
Be2 {[%clk 0:02:57.2]} 7... e6 {[%clk 0:02:56.5]} 8. O-O {[%clk 0:02:55.7]} 8...
Bd6 {[%clk 0:02:52.5]} 9. Ne5 {[%clk 0:02:44.9]} 9... Bf5 {[%clk 0:02:50.7]} 10.
f4 {[%clk 0:02:37.9]} 10... O-O {[%clk 0:02:49.3]} 11. c5 {[%clk 0:02:35]} 11...
Bxe5 {[%clk 0:02:47.1]} 12. fxe5 {[%clk 0:02:34.8]} 12... Ne4 {[%clk 0:02:47]}
13. Nxe4 {[%clk 0:02:32.5]} 13... Bxe4 {[%clk 0:02:46.8]} 14. Bd3 {[%clk
0:02:24.5]} 14... Bxd3 {[%clk 0:02:45.9]} 15. Qxd3 {[%clk 0:02:25.4]} 15... Nd7
{[%clk 0:02:46]} 16. Bd2 {[%clk 0:02:21.5]} 16... f5 {[%clk 0:02:45.2]} 17. exf6
{[%clk 0:02:07.2]} 17... Rxf6 {[%clk 0:02:40.3]} 18. e4 {[%clk 0:02:06.3]} 18...
Rxf1+ {[%clk 0:02:32.7]} 19. Rxf1 {[%clk 0:02:07.2]} 19... Nf6 {[%clk
0:02:32.5]} 20. Bg5 {[%clk 0:02:05.1]} 20... dxe4 {[%clk 0:02:32.2]} 21. Qe3
{[%clk 0:01:58.4]} 21... Qd5 {[%clk 0:02:27.8]} 22. Bxf6 {[%clk 0:01:56.9]}
22... gxf6 {[%clk 0:02:27.9]} 23. Rxf6 {[%clk 0:01:56.9]} 23... Kg7 {[%clk
0:02:23.1]} 24. Rf4 {[%clk 0:01:54.3]} 24... Rd8 {[%clk 0:01:57]} 25. Rxe4
{[%clk 0:01:46.8]} 25... Kh8 {[%clk 0:01:53.2]} 26. Qf4 {[%clk 0:01:40.6]} 26...
Qf5 {[%clk 0:01:24.3]} 27. Qe3 {[%clk 0:01:27.1]} 27... Rf8 {[%clk 0:01:20.8]}
28. h3 {[%clk 0:01:23.6]} 28... Rf6 {[%clk 0:01:19.7]} 29. Re5 {[%clk
0:01:16.5]} 29... Qb1+ {[%clk 0:01:13.6]} 30. Kh2 {[%clk 0:01:14.8]} 30... Qg6
{[%clk 0:01:05.2]} 31. Rg5 {[%clk 0:00:58.4]} 31... Qf7 {[%clk 0:01:00.4]} 32.
Qe5 {[%clk 0:00:57.2]} 32... h6 {[%clk 0:00:57.9]} 33. Rg4 {[%clk 0:00:50.4]}
33... Kh7 {[%clk 0:00:56.8]} 34. Re4 {[%clk 0:00:44.1]} 34... Rg6 {[%clk
0:00:39.4]} 35. Qf4 {[%clk 0:00:25]} 35... Qg7 {[%clk 0:00:34.6]} 36. Re2 {[%clk
0:00:19.7]} 36... Qf6 {[%clk 0:00:31.7]} 37. Qxf6 {[%clk 0:00:14.4]} 37... Rxf6
{[%clk 0:00:31.4]} 38. g4 {[%clk 0:00:13.2]} 38... Kg7 {[%clk 0:00:30.6]} 39.
Kg3 {[%clk 0:00:13.1]} 39... Rg6 {[%clk 0:00:23.3]} 40. h4 {[%clk 0:00:12.5]}
40... Rf6 {[%clk 0:00:22.8]} 41. g5 {[%clk 0:00:11.4]} 41... hxg5 {[%clk
0:00:22.4]} 42. hxg5 {[%clk 0:00:12.3]} 42... Rf5 {[%clk 0:00:21.3]} 43. Kg4
{[%clk 0:00:11.5]} 43... Rd5 {[%clk 0:00:21.2]} 44. Re4 {[%clk 0:00:08]} 44...
Kf7 {[%clk 0:00:20.7]} 45. Kh5 {[%clk 0:00:05.9]} 45... Kg7 {[%clk 0:00:16.7]}
46. Rxe6 {[%clk 0:00:05.8]} 46... Rxd4 {[%clk 0:00:16.8]} 47. Rxc6 {[%clk
0:00:05.8]} 47... Rd2 {[%clk 0:00:14]} 48. Rc7+ {[%clk 0:00:05.8]} 48... Kf8
{[%clk 0:00:13.4]} 49. Kg6 {[%clk 0:00:05.4]} 49... Rxa2 {[%clk 0:00:12.6]} 50.
c6 {[%clk 0:00:03.1]} 50... Rc2 {[%clk 0:00:10.2]} 51. Rc8+ {[%clk 0:00:02.8]}
51... Ke7 {[%clk 0:00:09.9]} 52. c7 {[%clk 0:00:03.2]} 52... Kd7 {[%clk
0:00:09.8]} 53. Ra8 {[%clk 0:00:03.1]} 53... Kxc7 {[%clk 0:00:08.9]} 54. Rxa6
{[%clk 0:00:03.3]} 54... Rc3 {[%clk 0:00:08.5]} 55. b4 {[%clk 0:00:02.9]} 55...
Rc4 {[%clk 0:00:08.4]} 56. Rf6 {[%clk 0:00:01.9]} 56... Rxb4 {[%clk 0:00:08.2]}
57. Kg7 {[%clk 0:00:02]} 57... Rg4 {[%clk 0:00:07.4]} 58. g6 {[%clk 0:00:02]}
58... b4 {[%clk 0:00:07.4]} 59. Rf3 {[%clk 0:00:01.5]} 59... Kc6 {[%clk
0:00:07.2]} 60. Kf7 {[%clk 0:00:01.7]} 60... Kc5 {[%clk 0:00:07.3]} 61. g7
{[%clk 0:00:01.7]} 61... Kc4 {[%clk 0:00:07.4]} 0-1